bitfinex/quotes_BTCUSD_20220212
["timestamp","ask_amount","ask_price","bid_price","bid_amount"]
[1644669173156,0.250256,42383.0,42382.0,8.106e-05]
[1644669173757,0.0973,42383.0,42382.0,8.106e-05]
[1644669173955,0.250256,42383.0,42382.0,8.106e-05]
[1644669174154,0.0973,42383.0,42382.0,8.106e-05]
[1644669175103,0.250256,42383.0,42382.0,8.106e-05]
[1644669176506,0.70000247,42382.0,42381.0,0.00023245]
[1644669176704,0.70000247,42382.0,42381.0,8.106e-05]
[1644669176904,0.80000247,42382.0,42381.0,0.00031351]
[1644669177207,0.80000247,42382.0,42381.0,8.106e-05]
[1644669178955,1.05025847,42382.0,42381.0,8.106e-05]
[1644669179158,1.05025847,42382.0,42381.0,2.106e-05]
[1644669179353,0.152956,42381.0,42373.0,0.00023245]
[1644669179554,0.152956,42376.0,42369.0,0.00023245]
[1644669179757,0.0473,42375.0,42363.0,0.00033245]
[1644669179952,0.152956,42374.0,42370.0,0.00023245]
[1644669180152,0.0473,42373.0,42367.0,0.0001]
[1644669180353,0.0473,42373.0,42367.0,0.00033245]
[1644669180552,0.200256,42373.0,42367.0,0.00033245]
[1644669180757,0.200256,42373.0,42370.0,0.00046835]
[1644669180953,0.250256,42373.0,42371.0,0.00023245]
[1644669181153,0.200256,42373.0,42371.0,0.00023245]
[1644669181354,0.0973,42373.0,42371.0,0.00023245]
[1644669181554,0.13035,42373.0,42371.0,0.00023245]
[1644669182009,0.13035,42373.0,42366.0,0.0001]
[1644669182010,0.13035,42373.0,42370.0,0.00046871]
[1644669182201,0.13035,42373.0,42371.0,0.00023245]
[1644669183003,0.13035,42373.0,42370.0,0.00046871]
[1644669183207,0.0973,42373.0,42371.0,0.00023245]
[1644669183604,0.09718815,42373.0,42371.0,0.00023245]
[1644669183805,0.152956,42376.0,42371.0,0.00023245]
[1644669184006,0.200256,42376.0,42371.0,0.00023245]
[1644669184206,0.200256,42376.0,42372.0,0.0304687]
[1644669185011,0.152956,42375.0,42372.0,0.0304687]
[1644669185206,0.0473,42374.0,42372.0,0.03]
[1644669185606,0.0473,42374.0,42372.0,0.03023245]
[1644669186254,0.152956,42373.0,42372.0,0.03023245]
[1644669186557,0.0473,42373.0,42372.0,0.08499266]
[1644669186759,0.07168998,42373.0,42372.0,0.08486021]
[1644669186957,0.07168998,42373.0,42372.0,0.08509266]
[1644669187559,0.22464598,42373.0,42372.0,0.08509266]
[1644669187755,0.07168998,42373.0,42372.0,0.08509266]
[1644669188156,0.22464598,42373.0,42372.0,0.08509266]
[1644669188356,0.27389859,42373.0,42372.0,0.08509266]
[1644669188562,0.07168998,42373.0,42372.0,0.08509266]
[1644669192710,0.17734598,42373.0,42372.0,0.08496866]
[1644669193257,0.02438998,42373.0,42372.0,0.08496866]
[1644669194057,0.17734598,42373.0,42372.0,0.03033245]
[1644669197106,0.38000292,42373.0,42372.0,0.03033245]
[1644669198408,0.17734598,42373.0,42372.0,0.03033245]
[1644669199008,0.37982428,42373.0,42372.0,0.03033245]
[1644669199511,0.37982428,42373.0,42360.0,0.3]
[1644669199512,0.059047,42370.0,42360.0,0.3]
[1644669199711,0.059047,42370.0,42359.0,0.0011]
[1644669199712,0.250256,42369.0,42359.0,0.0011]
[1644669200109,0.152956,42368.0,42359.0,0.0011]
[1644669200313,0.19685868,42366.0,42359.0,0.0011]
[1644669200516,0.200256,42365.0,42359.0,0.0011]
[1644669200956,0.059049,42364.0,42359.0,0.0011]
[1644669201158,0.059049,42364.0,42360.0,0.00046838]
[1644669201159,0.152956,42363.0,42360.0,0.00046838]
[1644669201759,0.152956,42361.0,42360.0,0.00046838]
[1644669202156,0.202956,42361.0,42359.0,0.0011]
[1644669202360,0.2835865,42360.0,42359.0,0.0011]
[1644669203357,0.0473,42360.0,42359.0,0.0011]
[1644669203561,0.0973,42360.0,42359.0,0.0011]
[1644669203758,0.0473,42360.0,42359.0,0.0011]
[1644669203958,0.0973,42360.0,42359.0,0.0011]
[1644669204363,0.0973,42360.0,42354.0,0.0011]
[1644669204364,0.962024,42359.0,42354.0,0.0011]
[1644669204626,0.0473,42358.0,42354.0,0.0011]
[1644669204826,0.118146,42356.0,42354.0,0.0011]
[1644669205023,0.200256,42355.0,42354.0,0.0011]
[1644669205224,0.45389022,42355.0,42354.0,0.0011]
[1644669205422,0.55389022,42355.0,42354.0,0.0011]
[1644669206525,0.86968585,42355.0,42354.0,0.0011]
[1644669206726,0.61605163,42355.0,42354.0,0.0011]
[1644669207026,0.46309563,42355.0,42354.0,0.0011]
[1644669208264,0.61605163,42355.0,42354.0,0.0011]
[1644669208964,0.62207955,42355.0,42354.0,0.0011]
[1644669210067,0.902956,42354.0,42347.0,0.0011]
[1644669210268,0.0473,42353.0,42347.0,0.0011]
[1644669210470,0.75,42351.0,42344.0,0.0011]
[1644669210769,0.109078,42349.0,42344.0,0.0011]
[1644669210968,0.45077571,42348.0,42344.0,0.0011]
[1644669211184,0.26198443,42346.0,42344.0,0.0011]
[1644669211370,0.34845669,42345.0,42344.0,0.0011]
[1644669211668,0.53873137,42345.0,42344.0,0.0011]
[1644669211870,0.53873137,42345.0,42342.0,0.03022913]
[1644669211871,0.152956,42344.0,42342.0,0.03022913]
[1644669212118,0.75,42342.0,42341.0,0.01]
[1644669212320,0.75,42342.0,42329.0,0.0011]
[1644669212321,0.75,42339.0,42329.0,0.0011]
[1644669212521,0.78357742,42337.0,42329.0,0.0011]
[1644669212717,0.21760388,42333.0,42329.0,0.0011]
[1644669212919,0.200256,42332.0,42329.0,0.0011]
[1644669213217,0.0473,42332.0,42329.0,0.0011]
[1644669213820,0.3,42337.0,42336.0,0.08896068]
[1644669214017,0.200256,42337.0,42336.0,0.08896068]
[1644669214217,0.4588218,42337.0,42336.0,0.08896068]
[1644669214417,0.7588218,42337.0,42336.0,0.08896068]
[1644669214615,0.7876418,42337.0,42336.0,0.08896068]
[1644669215218,0.8876418,42337.0,42336.0,0.08896068]
[1644669215866,0.5588218,42337.0,42336.0,0.08896068]
[1644669216067,1.0588218,42337.0,42336.0,0.08896068]
[1644669218671,0.59579693,42337.0,42336.0,0.08896068]
[1644669218870,0.59579693,42337.0,42336.0,0.08646068]
[1644669219271,0.33723113,42337.0,42336.0,0.08646068]
[1644669219518,0.28993113,42337.0,42336.0,0.08646068]
[1644669219712,0.18993113,42337.0,42336.0,0.08646068]
[1644669222015,0.18993113,42337.0,42336.0,0.08636068]
[1644669222816,0.18993113,42337.0,42336.0,0.08659204]
[1644669223264,0.18993113,42337.0,42336.0,0.08636068]
[1644669223466,0.18993113,42337.0,42336.0,0.41917368]
[1644669223467,0.03697513,42337.0,42336.0,0.41917368]
[1644669223665,0.03697513,42337.0,42336.0,0.08636068]
[1644669224270,0.18993113,42337.0,42336.0,0.08636068]
[1644669224468,0.18993113,42337.0,42336.0,0.08659204]
[1644669225566,0.18993113,42337.0,42336.0,0.08636068]
[1644669225765,0.23993113,42337.0,42336.0,0.08636068]
[1644669226467,0.23993113,42337.0,42336.0,0.08659204]
[1644669226666,0.23993113,42337.0,42336.0,0.08636068]
[1644669227810,0.23993113,42337.0,42336.0,0.08659204]
[1644669228211,0.23993113,42337.0,42336.0,0.08636068]
[1644669229111,0.23993113,42337.0,42336.0,0.08659204]
[1644669229313,0.23993113,42337.0,42336.0,0.08636068]
[1644669230413,0.23993113,42337.0,42336.0,0.08659204]
[1644669230612,0.23993113,42337.0,42336.0,0.08992945]
[1644669231463,0.23993113,42337.0,42336.0,0.09016081]
[1644669231664,0.23993113,42337.0,42336.0,0.08992945]
[1644669232068,0.08697513,42337.0,42336.0,0.08992945]
[1644669232264,0.23993113,42337.0,42336.0,0.08992945]
[1644669232672,0.23993113,42337.0,42336.0,0.09016081]
[1644669232867,0.23993113,42337.0,42336.0,0.08992945]
[1644669232868,0.08697513,42337.0,42336.0,0.08992945]
[1644669233066,0.23993113,42337.0,42336.0,0.08992945]
[1644669233267,0.08697513,42337.0,42336.0,0.08992945]
[1644669233468,0.23993113,42337.0,42336.0,0.08992945]
[1644669233666,0.08697513,42337.0,42336.0,0.08992945]
[1644669233867,0.08697513,42337.0,42336.0,0.37902391]
[1644669234068,0.08697513,42337.0,42336.0,0.37879255]
[1644669235808,0.08697513,42337.0,42336.0,0.37885829]
[1644669235809,0.23993113,42337.0,42336.0,0.37885829]
[1644669236009,0.0001,42355.0,42344.0,0.06760472]
[1644669236208,0.79318219,42359.0,42345.0,0.32637336]
[1644669236209,0.5001,42358.0,42345.0,0.32637336]
[1644669236408,0.5001,42358.0,42345.0,0.27858352]
[1644669236409,0.0001,42357.0,42345.0,0.27858352]
[1644669236609,0.152956,42356.0,42345.0,0.00023136]
[1644669236811,0.152956,42356.0,42345.0,0.23947388]
[1644669236812,0.0001,42355.0,42345.0,0.23947388]
[1644669237008,0.0001,42355.0,42346.0,0.23601707]
[1644669237208,0.152956,42354.0,42346.0,0.23601707]
[1644669237412,0.00027349,42353.0,42346.0,0.23624843]
[1644669238008,0.152956,42352.0,42346.0,0.23624843]
[1644669238257,0.202956,42352.0,42346.0,0.23624843]
[1644669238458,0.152956,42350.0,42346.0,0.00023136]
[1644669238660,0.152956,42350.0,42342.0,0.00023136]
[1644669238861,0.152956,42350.0,42341.0,0.00023136]
[1644669239061,0.152956,42350.0,42340.0,0.04753136]
[1644669239263,0.262023,42350.0,42340.0,0.04753136]
[1644669239568,0.152956,42348.0,42340.0,0.04753136]
[1644669239765,0.00050087,42347.0,42340.0,0.25678813]
[1644669239970,0.152956,42346.0,42340.0,0.25678813]
[1644669240167,0.202956,42346.0,42340.0,0.25678813]
[1644669240569,0.152956,42345.0,42340.0,0.25678813]
[1644669240768,0.26203,42345.0,42340.0,0.00023136]
[1644669240968,0.26203,42345.0,42339.0,0.86754666]
[1644669240969,0.152956,42343.0,42339.0,0.86754666]
[1644669241368,0.152956,42342.0,42339.0,0.86754666]
[1644669242517,0.152956,42342.0,42339.0,0.63259357]
[1644669243316,0.152956,42342.0,42339.0,0.63282493]
[1644669243613,0.152956,42342.0,42339.0,0.83108122]
[1644669243813,0.2192,42351.0,42348.0,0.27360028]
[1644669244015,0.1,42351.0,42348.0,0.27360028]
[1644669244415,0.15907,42351.0,42348.0,0.27383164]
[1644669244615,0.118136,42351.0,42348.0,0.27383164]
[1644669245216,0.118136,42351.0,42348.0,0.27360028]
[1644669246056,0.35544885,42351.0,42348.0,0.27360028]
[1644669246455,0.51452485,42351.0,42348.0,0.27360028]
[1644669247056,0.45544885,42351.0,42348.0,0.27360028]
[1644669247255,0.218136,42351.0,42348.0,0.27360028]
[1644669247659,0.118136,42351.0,42348.0,0.27360028]
[1644669248356,0.339144,42351.0,42348.0,0.27360028]
[1644669248756,0.486444,42351.0,42348.0,0.27360028]
[1644669249159,0.01103428,42350.0,42348.0,0.27360028]
[1644669250623,0.01103428,42350.0,42349.0,6.237e-05]
[1644669250821,0.01103428,42350.0,42349.0,0.00029373]
[1644669254865,0.27190119,42350.0,42349.0,0.00029373]
[1644669255058,0.01103428,42350.0,42349.0,0.00029373]
[1644669255464,0.01103428,42350.0,42349.0,0.00035893]
[1644669255861,2.80508335,42350.0,42349.0,0.00012757]
[1644669256259,2.90508335,42350.0,42349.0,0.00012757]
[1644669256861,0.11103428,42350.0,42349.0,0.00012757]
[1644669257109,0.11103428,42350.0,42349.0,0.03012757]
[1644669257309,0.01103428,42350.0,42349.0,0.03012757]
[1644669257511,0.2958761,42350.0,42349.0,0.03012757]
[1644669257708,0.7958761,42350.0,42349.0,0.03012757]
[1644669257912,0.8958761,42350.0,42349.0,0.03012757]
[1644669259913,0.8958761,42350.0,42349.0,0.00012757]
[1644669260518,0.8958761,42350.0,42348.0,0.27366849]
[1644669260519,0.75,42349.0,42348.0,0.08371429]
[1644669260775,1.28790828,42349.0,42348.0,0.0837809]
[1644669260969,1.78790828,42349.0,42348.0,0.0837809]
[1644669261270,1.78790828,42349.0,42348.0,0.05338042]
[1644669262170,2.28790828,42349.0,42348.0,0.05338042]
[1644669262368,0.75,42348.0,42340.0,0.00023136]
[1644669262568,0.75,42348.0,42339.0,0.63259357]
[1644669262569,0.618172,42346.0,42339.0,0.63259357]
[1644669262769,0.36740086,42345.0,42339.0,0.63259357]
[1644669263071,0.48557886,42345.0,42339.0,0.63259357]
[1644669263273,0.58557886,42345.0,42339.0,0.63259357]
[1644669263470,0.21459571,42341.0,42339.0,0.63259357]
[1644669263673,0.28478959,42340.0,42339.0,0.63259357]
[1644669263872,0.39117959,42340.0,42339.0,0.63259357]
[1644669264272,0.49117959,42340.0,42339.0,0.63259357]
[1644669265008,0.1473,42340.0,42339.0,0.63259357]
[1644669265408,0.0473,42340.0,42339.0,0.63259357]
[1644669267209,0.0473,42340.0,42339.0,0.66259357]
[1644669269561,0.06132239,42340.0,42339.0,0.66259357]
[1644669269960,0.06132239,42340.0,42339.0,0.66282493]
[1644669270160,0.06132239,42340.0,42339.0,0.66259357]
[1644669271161,0.06229859,42340.0,42339.0,0.66270848]
[1644669271863,0.12138459,42340.0,42339.0,0.66270848]
[1644669273610,0.62138459,42340.0,42339.0,0.66270848]
[1644669273809,0.72138459,42340.0,42339.0,0.66270848]
[1644669275856,0.72040839,42340.0,42339.0,0.6626629]
[1644669276056,0.72040839,42340.0,42339.0,0.66289426]
[1644669283255,0.72040839,42340.0,42339.0,0.66277825]
[1644669283855,0.72040839,42340.0,42339.0,0.66254689]
[1644669283856,0.62040839,42340.0,42339.0,0.66254689]
[1644669285157,0.67040839,42340.0,42339.0,0.66254689]
[1644669285359,0.77040839,42340.0,42339.0,0.66254689]
[1644669287011,0.77040839,42340.0,42339.0,0.30795489]
[1644669287614,0.27040839,42340.0,42339.0,0.30795489]
[1644669287807,0.17040839,42340.0,42339.0,0.30795489]
[1644669288009,0.67040839,42340.0,42339.0,0.30795489]
[1644669288408,0.77040839,42340.0,42339.0,0.30795489]
[1644669289811,1.07,42339.0,42338.0,0.00013759]
[1644669290010,1.6173,42339.0,42338.0,0.00013759]
[1644669290211,1.7173,42339.0,42338.0,0.00013759]
[1644669291266,1.776403,42339.0,42336.0,0.04433291]
[1644669291465,0.5,42337.0,42336.0,0.04410155]
[1644669291664,0.5473,42337.0,42336.0,0.03377291]
[1644669291864,0.6473,42337.0,42336.0,0.03377291]
[1644669292268,0.6473,42337.0,42336.0,0.03354897]
[1644669292666,0.75,42336.0,42335.0,0.00023136]
[1644669292867,1.79325218,42336.0,42334.0,0.00049589]
[1644669293064,0.28844412,42335.0,42334.0,0.00049589]
[1644669293264,0.33574412,42335.0,42334.0,0.00049589]
[1644669293464,0.0473,42335.0,42330.0,0.00023136]
[1644669293667,0.059105,42334.0,42332.0,0.0004959]
[1644669293967,0.76476975,42333.0,42332.0,0.0004959]
[1644669294166,0.81476975,42333.0,42332.0,0.0004959]
[1644669294367,0.91476975,42333.0,42332.0,0.0004959]
[1644669294616,0.91476975,42333.0,42330.0,0.00023136]
[1644669294820,0.059102,42332.0,42330.0,0.00072727]
[1644669295017,0.5473,42331.0,42330.0,0.00072727]
[1644669295216,0.5973,42331.0,42330.0,0.00072727]
[1644669295415,0.6973,42331.0,42330.0,0.00072727]
[1644669295815,0.6973,42331.0,42330.0,0.00023136]
[1644669296017,0.97096523,42331.0,42329.0,0.00133136]
[1644669297018,0.97096523,42331.0,42328.0,0.00149592]
[1644669297019,0.75,42329.0,42328.0,0.001]
[1644669297218,0.8473,42329.0,42328.0,0.00149593]
[1644669297422,0.9473,42329.0,42328.0,0.00149593]
[1644669298264,0.9473,42329.0,42328.0,0.001]
[1644669298662,1.4473,42329.0,42328.0,0.001]
[1644669298863,1.52694684,42329.0,42328.0,0.001]
[1644669300165,1.4473,42329.0,42328.0,0.001]
[1644669300564,1.4473,42329.0,42328.0,0.00112424]
[1644669302021,1.6473,42329.0,42328.0,0.00112424]
[1644669302416,0.05911,42327.0,42326.0,0.00049594]
[1644669302618,0.60641,42327.0,42326.0,0.00049594]
[1644669302814,0.70641,42327.0,42326.0,0.00049594]
[1644669303017,0.70641,42327.0,42316.0,0.001]
[1644669303218,0.168239,42323.0,42316.0,0.001]
[1644669303427,0.85642,42322.0,42316.0,0.00088408]
[1644669303620,0.05,42318.0,42316.0,0.00088408]
[1644669303818,0.7973,42317.0,42301.0,0.0111]
[1644669304017,0.8473,42317.0,42306.0,0.25373329]
[1644669304217,0.8473,42317.0,42306.0,0.0011]
[1644669304218,0.118282,42316.0,42306.0,0.0011]
[1644669304421,0.75,42314.0,42304.0,0.01862413]
[1644669304620,0.3473,42313.0,42304.0,0.01862413]
[1644669304820,0.1973,42313.0,42304.0,0.01862413]
[1644669305222,0.256438,42313.0,42306.0,0.23568761]
[1644669305620,0.256438,42313.0,42305.0,0.19949803]
[1644669305621,0.206438,42313.0,42305.0,0.19949803]
[1644669306080,0.106438,42313.0,42305.0,0.19949803]
[1644669306280,0.16557,42313.0,42304.0,0.01862413]
[1644669306680,0.19471424,42310.0,42304.0,0.01862413]
[1644669306981,0.059129,42309.0,42304.0,0.01862413]
[1644669307280,0.0973,42310.0,42304.0,0.01862413]
[1644669307281,0.0473,42310.0,42304.0,0.01862413]
[1644669307479,0.0473,42310.0,42304.0,0.23606859]
[1644669308081,0.0473,42310.0,42305.0,0.00049363]
[1644669308681,0.05,42312.0,42311.0,0.19459999]
[1644669309282,0.0721139,42312.0,42311.0,0.19459999]
[1644669309514,0.1194139,42312.0,42311.0,0.19459999]
[1644669309912,0.1194139,42312.0,42311.0,0.18959999]
[1644669310313,0.1694139,42312.0,42311.0,0.18959999]
[1644669311818,0.059127,42316.0,42311.0,0.18959999]
[1644669311819,0.177365,42325.0,42311.0,0.57283299]
[1644669312017,0.0473,42328.0,42312.0,0.75]
[1644669312018,0.3,42324.0,42312.0,0.75]
[1644669312218,0.0001,42325.0,42312.0,0.3]
[1644669312417,0.0001,42327.0,42311.0,0.18959999]
[1644669312619,0.5,42328.0,42311.0,0.18959999]
[1644669312620,0.0001,42326.0,42311.0,0.18959999]
[1644669312819,0.47982855,42325.0,42312.0,0.07903696]
[1644669313019,0.22688172,42325.0,42314.0,0.00049352]
[1644669313266,0.05960544,42320.0,42314.0,0.00049352]
[1644669313477,0.00049344,42320.0,42314.0,0.00049352]
[1644669313867,0.00049344,42320.0,42316.0,0.05]
[1644669314066,0.26093108,42332.0,42321.0,0.0759818]
[1644669314067,0.0001,42328.0,42321.0,0.0759818]
[1644669314267,0.23476497,42330.0,42320.0,0.20476719]
[1644669314470,0.0001,42329.0,42320.0,0.20476719]
[1644669314767,0.059202,42329.0,42320.0,0.20476719]
[1644669314968,0.0001,42328.0,42320.0,0.20476719]
[1644669315367,0.05,42330.0,42320.0,0.20476719]
[1644669315368,0.0001,42329.0,42321.0,0.34689716]
[1644669315570,0.0001,42329.0,42320.0,0.20476719]
[1644669315571,0.00049342,42327.0,42320.0,0.20476719]
[1644669316369,0.059199,42329.0,42321.0,0.06681846]
[1644669316569,0.00049343,42326.0,42321.0,0.06704587]
[1644669316768,0.00049343,42326.0,42321.0,0.00022741]
[1644669317035,0.00049343,42326.0,42320.0,0.20476719]
[1644669317328,0.00049343,42326.0,42323.0,0.19507279]
[1644669317528,0.0001,42328.0,42323.0,0.19507279]
[1644669317737,0.0001,42328.0,42325.0,0.05]
[1644669317932,0.14688834,42338.0,42325.0,0.05]
[1644669317933,0.00049342,42327.0,42325.0,0.05]
[1644669318136,0.00049342,42327.0,42326.0,0.633233]
[1644669318330,0.00049342,42327.0,42326.0,0.4249]
[1644669318730,0.00049342,42327.0,42326.0,0.20425884]
[1644669319029,0.00266421,42327.0,42326.0,0.20425884]
[1644669319428,0.01067954,42328.0,42327.0,0.75]
[1644669319628,0.0001,42342.0,42328.0,0.7]
[1644669319828,0.0001,42342.0,42330.0,0.05]
[1644669320029,0.05908,42342.0,42331.0,0.30457151]
[1644669320229,0.0001,42341.0,42331.0,0.30457151]
[1644669320430,0.0001,42341.0,42330.0,0.05]
[1644669320635,0.0001,42341.0,42336.0,0.2695538]
[1644669321069,0.0001,42341.0,42328.0,0.7]
[1644669321268,0.118178,42339.0,42328.0,0.7]
[1644669321666,0.118178,42339.0,42329.0,0.28217626]
[1644669321667,0.0001,42338.0,42329.0,0.28217626]
[1644669322066,0.0001,42338.0,42331.0,0.45492304]
[1644669322469,0.0501,42340.0,42331.0,0.45492304]
[1644669322667,0.00049433,42337.0,42332.0,0.28168808]
[1644669322867,0.00049433,42337.0,42331.0,0.45492304]
[1644669323069,0.00049433,42337.0,42332.0,0.28339929]
[1644669323668,0.0001,42342.0,42332.0,0.28339929]
[1644669323869,0.00049433,42337.0,42332.0,0.28339929]
[1644669324069,0.00049433,42337.0,42331.0,0.45492304]
[1644669324526,0.00049433,42337.0,42324.0,0.4759]
[1644669324716,0.00049433,42337.0,42332.0,0.00252546]
[1644669324916,0.0001,42338.0,42332.0,0.00252546]
[1644669325117,0.00049435,42333.0,42332.0,0.00252546]
[1644669325922,0.27108503,42333.0,42332.0,0.00258689]
[1644669326120,0.27059068,42333.0,42332.0,0.00258689]
[1644669326921,0.15,42334.0,42332.0,0.00258689]
[1644669327920,0.05,42334.0,42332.0,0.00258689]
[1644669328366,0.0001,42337.0,42332.0,0.00258689]
[1644669328367,0.0001,42336.0,42332.0,0.00258689]
[1644669328768,0.00049434,42335.0,42332.0,0.00258689]
[1644669329168,0.00049434,42335.0,42332.0,6.143e-05]
[1644669329368,0.00296146,42334.0,42332.0,6.143e-05]
[1644669330972,0.00296146,42334.0,42324.0,0.38962741]
[1644669330973,0.00296146,42334.0,42329.0,6.011e-05]
[1644669331182,0.059098,42333.0,42329.0,6.011e-05]
[1644669331375,0.106398,42333.0,42329.0,6.011e-05]
[1644669333418,0.37090619,42333.0,42329.0,6.011e-05]
[1644669333821,0.47090619,42333.0,42329.0,6.011e-05]
[1644669334418,0.47297245,42333.0,42332.0,0.00220917]
[1644669336865,0.20846426,42333.0,42332.0,0.00220917]
[1644669337064,0.48449518,42333.0,42332.0,0.00220917]
[1644669339069,0.53449518,42333.0,42329.0,6.011e-05]
[1644669339269,0.58449518,42333.0,42329.0,6.011e-05]
[1644669339551,0.93478151,42333.0,42329.0,6.011e-05]
[1644669339943,0.35028633,42331.0,42329.0,1.1e-07]
[1644669340142,0.34483333,42330.0,42329.0,1.1e-07]
[1644669340342,0.44483333,42330.0,42329.0,1.1e-07]
[1644669340945,0.44483333,42330.0,42328.0,0.00227595]
[1644669341145,0.3241829,42329.0,42328.0,0.00227595]
[1644669341347,0.4714829,42329.0,42328.0,0.00227595]
[1644669341945,0.4814829,42329.0,42328.0,0.00227595]
[1644669342245,0.4724829,42329.0,42328.0,0.00227595]
[1644669344074,0.4724829,42329.0,42320.0,0.00022741]
[1644669344279,0.059106,42327.0,42319.0,0.00310836]
[1644669344473,0.33286091,42326.0,42319.0,0.00310836]
[1644669344874,0.48286091,42326.0,42319.0,0.00310836]
[1644669345073,0.53286091,42326.0,42319.0,0.00310836]
[1644669345274,0.53286091,42326.0,42319.0,0.00261306]
[1644669345474,0.059107,42324.0,42319.0,0.00310832]
[1644669345674,0.05911,42322.0,42319.0,0.00310832]
[1644669345874,0.10641,42322.0,42319.0,0.00310832]
[1644669346074,0.15641,42322.0,42319.0,0.00310832]
[1644669346273,0.0973,42322.0,42319.0,0.00310832]
[1644669346477,0.0973,42322.0,42319.0,0.00261306]
[1644669346878,0.0973,42322.0,42319.0,0.00284047]
[1644669347927,0.265543,42322.0,42319.0,0.00261306]
[1644669348124,0.1473,42322.0,42319.0,0.00261306]
[1644669348323,0.1848385,42322.0,42319.0,0.00284047]
[1644669348926,0.33580693,42321.0,42319.0,0.00284047]
[1644669349125,0.6886,42320.0,42319.0,0.00261306]
[1644669349324,0.7886,42320.0,42319.0,0.00261306]
[1644669349528,0.8386,42320.0,42319.0,0.00284047]
[1644669349724,0.98821629,42320.0,42319.0,0.00284047]
[1644669350027,0.8386,42320.0,42319.0,0.00261306]
[1644669350225,1.13802713,42320.0,42319.0,0.00261306]
[1644669350524,1.63802713,42320.0,42319.0,0.00261306]
[1644669351183,1.67172856,42320.0,42319.0,0.00261306]
[1644669351384,1.63802713,42320.0,42319.0,0.00261306]
[1644669351785,1.3386,42320.0,42319.0,0.00261306]
[1644669351986,1.1886,42320.0,42319.0,0.00261306]
[1644669352189,0.0973,42320.0,42319.0,0.00261306]
[1644669352383,0.05,42320.0,42319.0,0.00261306]
[1644669352783,0.06140574,42325.0,42319.0,0.00261306]
[1644669352985,0.5,42324.0,42319.0,0.00261306]
[1644669353185,0.05,42324.0,42319.0,0.00261306]
[1644669353785,0.06140574,42325.0,42319.0,0.00310831]
[1644669353987,0.01410574,42325.0,42319.0,0.00333572]
[1644669354184,0.501,42329.0,42319.0,0.00310831]
[1644669354185,0.013104,42320.0,42319.0,0.00310831]
[1644669354826,0.013104,42320.0,42319.0,0.00261306]
[1644669357224,0.060404,42320.0,42319.0,0.00261306]
[1644669357822,0.110404,42320.0,42319.0,0.00261306]
[1644669358886,0.060404,42320.0,42319.0,0.00261306]
[1644669359488,0.33011314,42320.0,42319.0,0.00261306]
[1644669359687,0.38011314,42320.0,42319.0,0.00261306]
[1644669359886,0.48011314,42320.0,42319.0,0.00261306]
[1644669360287,0.53011314,42320.0,42319.0,0.00261306]
[1644669361687,0.48011314,42320.0,42319.0,0.00261306]
[1644669363325,0.210404,42320.0,42319.0,0.00261306]
[1644669363627,0.52688895,42320.0,42319.0,0.00261306]
[1644669364823,0.52688895,42320.0,42319.0,0.00252112]
[1644669365230,0.210404,42320.0,42319.0,0.00252112]
[1644669365424,0.110404,42320.0,42319.0,0.00252112]
[1644669371524,0.4210571,42320.0,42319.0,0.00252112]
[1644669372024,0.5210571,42320.0,42319.0,0.00252112]
[1644669372425,0.74266626,42320.0,42319.0,0.00252112]
[1644669372826,1.4837849,42320.0,42319.0,0.00205535]
[1644669373029,1.83407123,42320.0,42319.0,0.00205535]
[1644669373278,1.4837849,42320.0,42319.0,0.00205535]
[1644669373880,1.9837849,42320.0,42319.0,0.00205535]
[1644669374085,2.33407123,42320.0,42319.0,0.00205535]
[1644669375481,1.83407123,42320.0,42319.0,0.00205535]
[1644669375886,0.16292264,42320.0,42319.0,0.00205535]
[1644669376084,0.013104,42320.0,42319.0,0.00205535]
[1644669378627,0.01479269,42320.0,42318.0,0.00022741]
[1644669378827,0.01479269,42320.0,42317.0,0.00022741]
[1644669379027,0.01479269,42320.0,42317.0,0.00044865]
[1644669379230,0.01479269,42320.0,42317.0,0.00022124]
[1644669380129,0.01479269,42320.0,42314.0,0.00022741]
[1644669380329,0.01479269,42320.0,42316.0,0.00049426]
[1644669382485,0.01479269,42320.0,42312.0,0.00022741]
[1644669382686,0.01479269,42320.0,42316.0,0.00049426]
[1644669383688,0.01479269,42320.0,42312.0,0.00022741]
[1644669383990,0.01479269,42320.0,42316.0,0.00049426]
[1644669384833,0.01479269,42320.0,42313.0,0.00022741]
[1644669385035,0.01479269,42320.0,42316.0,0.00049426]
[1644669386134,0.01479269,42320.0,42315.0,0.00022741]
[1644669386337,0.01479269,42320.0,42316.0,0.00049426]
[1644669387335,0.01479269,42320.0,42315.0,0.00022741]
[1644669387535,0.01479269,42320.0,42316.0,0.00049426]
[1644669388480,0.01479269,42320.0,42313.0,0.00022741]
[1644669388481,0.01479269,42320.0,42318.0,0.26822693]
[1644669393326,0.01479269,42320.0,42317.0,0.00022741]
[1644669393527,0.01479269,42320.0,42317.0,0.00045689]
[1644669394428,0.01479269,42320.0,42314.0,0.00022741]
[1644669394629,0.01479269,42320.0,42316.0,0.00045689]
[1644669395527,0.01479269,42320.0,42316.0,0.00036965]
[1644669395778,0.01479269,42320.0,42317.0,6.06e-05]
[1644669399180,0.01479269,42320.0,42317.0,0.00028801]
[1644669399383,0.01479269,42320.0,42319.0,0.19061916]
[1644669399635,0.40030743,42332.0,42319.0,0.19061916]
[1644669399636,0.00045661,42326.0,42319.0,0.49061916]
[1644669399836,0.00045661,42326.0,42322.0,0.04437807]
[1644669400633,0.35015361,42328.0,42322.0,0.04437807]
[1644669400931,0.40015361,42328.0,42322.0,0.04437807]
[1644669401334,0.35015361,42327.0,42322.0,0.04437807]
[1644669402132,0.40015361,42328.0,42322.0,0.04437807]
[1644669402332,0.35015361,42328.0,42322.0,0.04437807]
[1644669402533,0.40015361,42328.0,42322.0,0.04437807]
[1644669402932,0.05,42328.0,42322.0,0.04437807]
[1644669403279,0.35015361,42329.0,42322.0,0.04437807]
[1644669403680,0.001,42323.0,42322.0,0.04437807]
[1644669408529,0.00408871,42323.0,42322.0,0.04437807]
[1644669411780,0.05138871,42323.0,42322.0,0.04437807]
[1644669413385,0.00408871,42323.0,42322.0,0.37761107]
[1644669413981,0.00408871,42323.0,42322.0,0.04437807]
[1644669414837,0.29201799,42328.0,42322.0,0.04437807]
[1644669415235,0.34201799,42328.0,42322.0,0.04437807]
[1644669415838,0.05,42328.0,42322.0,0.04437807]
[1644669416037,0.0473,42329.0,42322.0,0.04437807]
[1644669416038,0.0473,42327.0,42322.0,0.04437807]
[1644669416239,0.0473,42326.0,42322.0,0.04437807]
[1644669416439,0.0473,42325.0,42322.0,0.04437807]